[Event "CCT Airthings Masters Play-In 2023"]
[Site "Online"]
[Date "2023.02.03"]
[Round "3"]
[White "dropstoneDP"]
[Black "Sankalp_Gupta"]
[Result "0-1"]
[ECO "C09"]
[WhiteElo "2558"]
[BlackElo "2415"]
[Annotator "TA"]
[PlyCount "162"]
[EventDate "2023.02.03"]
[EventType "swiss"]
[EventCountry "NET"]
[SourceTitle "playchess.com"]
[Source "ChessBase"]
[SourceQuality "1"]
[TimeControl "600+2"]

{[%evp 18,161,21,15,13,10,16,13,6,15,49,13,26,18,54,55,64,49,39,35,37,0,0,0,0,0,0,0,0,0,0,0,0,0,0,0,0,0,0,0,0,-12,0,0,0,0,0,0,0,0,0,0,0,-5,0,-8,-8,-8,-8,-8,-8,-8,-7,-8,0,0,0,0,0,0,0,0,0,0,0,0,13,13,25,0,44,45,50,25,13,13,13,0,8,0,13,8,8,8,14,12,31,31,60,54,441,69,70,57,156,152,125,147,135,78,133,77,79,81,120,-1760,-1658,-1166,-315,-315,-315,-315,-315,-315,-308,-308,-308,-286,-286,-286,-286,-286,-286,-286,-286,-286,-286,-286,-286,-286,-286,-286,-286,-286,-286,-29999]} 1. e4 {[%emt 0:00:03]} e6 {[%emt 0:00:06]} 2. d4 {[%emt 0:00:01]} d5 {[%emt 0:00:01]} 3. Nd2 {[%emt 0:00:00]} c5 {[%emt 0:00:03]} 4. Ngf3 {[%emt 0:00:02]} Nc6 {[%emt 0:00:04]} 5. exd5 {[%emt 0:00:02]} exd5 {[%emt 0:00:00]} 6. Bb5 {[%emt 0:00:01]} cxd4 {[%emt 0:00:05]} 7. O-O {[%emt 0:00:32]} Bd6 {[%emt 0:00:03]} 8. Nb3 {[%emt 0:00:35]} Nge7 {[%emt 0:00:06]} 9. Nbxd4 {[%emt 0:00:03]} O-O {[%emt 0:00:03]} 10. h3 {[%emt 0:00:07] is cutting edge theory.} Nxd4 {[%emt 0:00:02] C09: French Tarrasch: 3...c5 4 exd5 exd5 5 Ngf3 Nc6.} 11. Nxd4 {[%emt 0:00:00]} Bc7 {[%emt 0:00:02]} 12. Re1 {[%emt 0:03:52]} Qd6 {[%emt 0:00:07] [#] The position is equal.} 13. g3 $146 {[%emt 0:00:03]} ({Predecessor:} 13. Nf3 Ng6 14. Bd3 Bd7 15. Be3 Rae8 16. Qd2 d4 17. Bxd4 Nh4 18. Ne5 f6 19. Bc4+ {0-1 Jumabayev,R (2620)-Munkhgal,G (2463) Titled Tuesday intern op 22nd Nov Early blitz 2022 (10)}) 13... Bxh3 {[%emt 0:00:37]} 14. Qh5 {[%emt 0:00:13]} (14. Bf4 $5 {[%cal Rf4d6]} Qc5 15. Bxc7 (15. b4 Qb6 $11) 15... Qxc7 16. Qh5 $11) 14... Bb6 {[%emt 0:01:42]} 15. Bf4 {[%emt 0:00:53]} Qf6 {[%emt 0:00:08] Some like it hot} 16. Be5 {[%emt 0:00:43]} ({Much worse is} 16. Bd3 g6 17. Qxh3 Bxd4 $11) 16... Qh6 {[%emt 0:00:19]} 17. Qxh6 {[%emt 0:00:02]} gxh6 {[%emt 0:00:01]} 18. Kh2 {[%emt 0:01:34]} Bg4 {[%emt 0:00:14]} 19. f3 {[%emt 0:00:44]} Ng6 {[%emt 0:00:19]} 20. fxg4 {[%emt 0:00:12]} (20. Bd6 {feels hotter.} Rfc8 21. c3 Bxd4 22. fxg4 Bc5 23. Bf4) 20... Nxe5 {[%emt 0:00:04][%mdl 64] Remove Defender} 21. Rxe5 {[%emt 0:00:00] Nf5 is the strong threat.} Bxd4 {[%emt 0:00:00]} 22. Rxd5 {[%emt 0:00:19]} Bxb2 {[%emt 0:00:02]} 23. Rb1 {[%emt 0:00:03]} Bc3 {[%emt 0:00:11]} 24. Rd7 {[%emt 0:00:14]} a6 {[%emt 0:00:15]} 25. Bc4 {[%emt 0:00:16]} b5 {[%emt 0:00:01]} 26. Bb3 {[%emt 0:00:00]} Rad8 {[%emt 0:00:05]} 27. Rbd1 {[%emt 0:00:03]} Bf6 {[%emt 0:00:15]} 28. Kg2 {[%emt 0:00:15]} a5 {[%emt 0:00:02]} 29. Rxd8 {[%emt 0:00:01]} Bxd8 $11 {[%emt 0:00:11][%mdl 4096] Endgame KRB-KRB} 30. Rd7 {[%emt 0:00:02]} Kg7 {[%emt 0:00:10]} 31. Rb7 {[%emt 0:00:01]} b4 {[%emt 0:00:02]} 32. Kf3 {[%emt 0:00:01]} Kf6 {[%emt 0:00:01]} 33. Ra7 {[%emt 0:00:02]} Kg6 {[%emt 0:00:13]} 34. Bc4 {[%emt 0:00:01]} Kg7 {[%emt 0:00:05]} 35. Rb7 {[%emt 0:00:01]} Bg5 {[%emt 0:00:07]} 36. Ra7 {[%emt 0:00:02]} Rc8 {[%emt 0:00:06]} 37. Bb3 {[%emt 0:00:06]} Rc3+ {[%emt 0:00:21]} 38. Kg2 {[%emt 0:00:01]} Bd8 {[%emt 0:00:00]} 39. Rxf7+ {[%emt 0:00:01]} Kg6 {[%emt 0:00:01][%cal Oc3b3]} 40. Rf3 {[%emt 0:00:05]} Rc7 {[%emt 0:00:07]} 41. Rf8 {[%emt 0:00:01]} Rd7 {[%emt 0:00:08]} 42. Rg8+ {[%emt 0:00:01]} Kf6 {[%emt 0:00:03]} 43. Rf8+ {[%emt 0:00:01]} Kg7 {[%emt 0:00:03]} 44. Rf5 {[%emt 0:00:01]} Rd2+ {[%emt 0:00:02]} 45. Kf3 {[%emt 0:00:01]} Bb6 {[%emt 0:00:07]} 46. Rb5 {[%emt 0:00:06]} Bd8 {[%emt 0:00:13]} 47. Rb7+ {[%emt 0:00:01]} Kg6 {[%emt 0:00:04]} 48. Bc4 {[%emt 0:00:01]} Kf6 {[%emt 0:00:28]} 49. Bd3 {[%emt 0:00:01]} Ke5 {[%emt 0:00:06]} 50. Rxh7 {[%emt 0:00:03]} (50. Rb8 $5 {[%cal Rb8d8]} Bc7 51. Rb5+ Kd4 52. Rb7 $14) 50... Bb6 {[%emt 0:00:03][%csl Gb6][%cal Rd2f2]} 51. g5 {[%emt 0:00:03]} hxg5 {[%emt 0:00:04]} 52. Kg4 {[%emt 0:00:01]} Kd4 {[%emt 0:00:15]} 53. Rh6 {[%emt 0:00:00]} Kc5 {[%emt 0:00:29]} 54. Kxg5 {[%emt 0:00:04]} a4 {[%emt 0:00:00][%cal Ob4b3]} 55. Bf5 {[%emt 0:00:03]} Bd8+ {[%emt 0:00:21]} 56. Kg4 {[%emt 0:00:01]} Kc4 {[%emt 0:00:03]} 57. Rc6+ {[%emt 0:00:02]} Kb5 {[%emt 0:00:02]} 58. Rc8 {[%emt 0:00:02] aiming for Bd3+.} a3 $2 {[%emt 0:00:05][%mdl 8192]} (58... Kb6 $14) 59. Kf3 $2 {[%emt 0:00:05]} (59. Bd3+ $18 Rxd3 60. cxd3) 59... Kb6 {[%emt 0:00:05]} 60. g4 {[%emt 0:00:02]} Bg5 {[%emt 0:00:04] [#]} (60... Bc7 $14) 61. Rb8+ $1 $16 {[%emt 0:00:03]} Kc5 {[%emt 0:00:03]} 62. Bd3 {[%emt 0:00:00] Threatens to win with Rb5+.} Be7 {[%emt 0:00:06]} 63. Ke4 {[%emt 0:00:03]} (63. Rb7 $142 Bd6 64. g5) 63... Rg2 {[%emt 0:00:02] [#]} (63... Kc6 $142) 64. Rb5+ {[%emt 0:00:04]} (64. Kf5 $142 $1) 64... Kc6 {[%emt 0:00:03]} 65. Kf5 {[%emt 0:00:03] And now Be4+ would win.} Rg3 {[%emt 0:00:15][%cal Og3d3] Strongly threatening ...Rxd3!} 66. Kf4 $2 {[%emt 0:00:01][%mdl 8192] [#]} (66. Re5 $16 Kd6 67. Re6+ Kd7 68. Ra6) 66... Rxd3 $1 $19 {[%emt 0:00:18][%mdl 576] Remove Defender, Promotion} 67. Rxb4 {[%emt 0:00:01]} Bxb4 $2 {[%emt 0:00:00]} (67... Rc3 68. Rb1 Rxc2) 68. cxd3 {[%emt 0:00:01] KB-K3P} Kd5 {[%emt 0:00:04] ( -> ...Kd4)} 69. Ke3 {[%emt 0:00:01]} Bc5+ {[%emt 0:00:51]} 70. Kd2 {[%emt 0:00:01]} Ke5 {[%emt 0:00:01]} 71. g5 {[%emt 0:00:01]} Kf5 {[%emt 0:00:01]} 72. d4 {[%emt 0:00:00]} Bd6 {[%emt 0:00:02]} (72... Bxd4 $2 {too greedy.} 73. Ke2 $19) 73. d5 {[%emt 0:00:01]} Kxg5 {[%emt 0:00:01] KB-KPP} 74. Kd3 {[%emt 0:00:09]} Kf5 {[%emt 0:00:01]} 75. Kc2 {[%emt 0:00:00]} Ke5 {[%emt 0:00:00]} 76. Kd3 {[%emt 0:00:01]} Kxd5 {[%emt 0:00:01]} 77. Kc2 {[%emt 0:00:01]} Kc4 {[%emt 0:00:01]} 78. Kb1 {[%emt 0:00:00]} Kc3 {[%emt 0:00:01]} 79. Ka1 {[%emt 0:00:02]} Be5 {[%emt 0:00:01][%cal Rc3c2]} 80. Kb1 {[%emt 0:00:01]} Bf6 {[%emt 0:00:00]} 81. Ka1 $2 {[%emt 0:00:00]} (81. Kc1 $19) 81... Kc2# {[%emt 0:00:01] What a bad dream for White.   Weighted Error Value: White=0.13 (very precise) /Black=0.23 (precise)} 0-1

[Event "CCT Airthings Masters Play-In 2023"]
[Site "Online"]
[Date "2023.02.03"]
[Round "3"]
[White "attack2mateU"]
[Black "Iskusnyh, Sergei"]
[Result "1-0"]
[ECO "C11"]
[WhiteElo "2556"]
[BlackElo "2443"]
[Annotator "TA"]
[PlyCount "59"]
[EventDate "2023.02.03"]
[EventType "swiss"]
[EventCountry "NET"]
[SourceTitle "playchess.com"]
[Source "ChessBase"]
[SourceQuality "1"]
[TimeControl "600+2"]

{[%evp 10,59,10,0,10,11,10,0,23,15,27,16,7,0,70,70,66,62,72,72,80,75,82,45,87,84,95,81,91,86,93,87,97,92,83,55,147,148,553,550,543,512,704,519,872,842,858,845,29983,29984,29986,29986]} 1. e4 {[%emt 0:00:03]} e6 {[%emt 0:00:04]} 2. d4 {[%emt 0:00:01]} d5 {[%emt 0:00:03]} 3. Nc3 {[%emt 0:00:00]} Nf6 {[%emt 0:00:01]} 4. e5 {[%emt 0:00:01]} Nfd7 {[%emt 0:00:03]} 5. f4 {[%emt 0:00:00]} c5 {[%emt 0:00:03]} 6. Nf3 {[%emt 0:00:01]} Be7 {[%emt 0:00:04] C11: French: Classical System: 4 e5 and 4 Bg5 dxe4.} 7. Be3 {[%emt 0:00:04]} O-O {[%emt 0:00:03]} 8. a3 {[%emt 0:00:25] [#]} a6 $146 {[%emt 0:00:17] The position is equal.} ({Predecessor:} 8... b6 9. g3 Nc6 10. Qd2 Bb7 11. h4 Rc8 12. Bh3 cxd4 13. Nxd4 Bc5 14. Nxc6 Bxc6 {0-1 Nomin Erdene,D (2448)-Buhmann,R (2651) Wunsiedel op 10th 2016 (4)}) 9. dxc5 {[%emt 0:00:05]} Nxc5 {[%emt 0:00:05]} 10. b4 {[%emt 0:00:26]} Ncd7 {[%emt 0:02:36][%cal Bc5d7,Bd7b6,Bb6a4,Ba4c3][%mdl 32] Black is weak on the dark squares} ({But not} 10... Ne4 11. Nxe4 dxe4 12. Qxd8 Rxd8 13. Nd2 $16) 11. Ne2 {[%emt 0:01:22]} f6 {[%emt 0:01:51]} ({Better is} 11... a5 $11) 12. Ned4 $36 {[%emt 0:00:05][%mdl 2048] White is more active.} Nb6 $1 {[%emt 0:01:01]} ({Weaker is} 12... Qb6 13. c4 $16) 13. Bd3 {[%emt 0:00:12]} Nc6 {[%emt 0:00:16]} 14. Nxc6 {[%emt 0:00:31]} bxc6 {[%emt 0:00:02]} 15. O-O {[%emt 0:00:27]} f5 {[%emt 0:01:38]} 16. Qe2 {[%emt 0:00:30]} Na4 {[%emt 0:00:09] [#]} 17. c4 $1 {[%emt 0:01:15]} Nc3 {[%emt 0:01:10]} 18. Qc2 {[%emt 0:00:03]} dxc4 {[%emt 0:00:12]} 19. Bxc4 {[%emt 0:00:05]} Nd5 {[%emt 0:00:01]} 20. Bxd5 {[%emt 0:00:44]} cxd5 {[%emt 0:00:09]} 21. Rfc1 {[%emt 0:00:34] White is much more active. The black rooks are badly placed.} Bd7 {[%emt 0:00:05]} 22. Qc7 {[%emt 0:00:04]} Rc8 {[%emt 0:00:21]} (22... Rf7 $14) 23. Qb7 $16 {[%emt 0:00:01]} Bb5 $2 {[%emt 0:00:13][%mdl 8192] Loses the game.} (23... a5 $16 {is more resistant.} 24. bxa5 Rb8) 24. Rxc8 $18 {[%emt 0:00:13][%mdl 64] [#] Deflection} Qxc8 {[%emt 0:00:01]} 25. Qxe7 {[%emt 0:00:01]} Qc3 {[%emt 0:00:00]} 26. Re1 {[%emt 0:00:04]} d4 {[%emt 0:00:15]} (26... Re8 $142 27. Qa7 Qxa3) 27. Qxe6+ {[%emt 0:00:03]} Kh8 {[%emt 0:00:03]} 28. Bxd4 {[%emt 0:00:02]} Qd3 {[%emt 0:00:04]} 29. Qd6 {[%emt 0:00:16][%cal Rd6f8]} Rc8 {[%emt 0:00:05]} 30. e6 {[%emt 0:00:04] Weighted Error Value: White=0.24 (precise) /Black=0.81} 1-0

[Event "CCT Airthings Masters Play-In 2023"]
[Site "Online"]
[Date "2023.02.03"]
[Round "3"]
[White "rpragchess"]
[Black "GGuseinov"]
[Result "1/2-1/2"]
[ECO "B22"]
[WhiteElo "2556"]
[BlackElo "2640"]
[Annotator "TA"]
[PlyCount "40"]
[EventDate "2023.02.03"]
[EventType "swiss"]
[EventCountry "NET"]
[SourceTitle "playchess.com"]
[Source "ChessBase"]
[SourceQuality "1"]
[TimeControl "600+2"]

{[%evp 10,40,15,0,21,6,5,8,45,34,44,39,32,32,58,47,55,44,58,55,88,10,39,27,54,44,66,0,0,0,0,0,0]} 1. e4 {[%emt 0:00:03]} c5 {[%emt 0:00:04]} 2. Nf3 {[%emt 0:00:00]} g6 {[%emt 0:00:11]} 3. c3 {[%emt 0:00:04]} d5 {[%emt 0:00:03]} 4. e5 {[%emt 0:00:02]} Nc6 {[%emt 0:00:03]} 5. d4 {[%emt 0:00:04]} cxd4 {[%emt 0:00:10]} 6. cxd4 {[%emt 0:00:01]} Bg4 {[%emt 0:00:01] B22: Sicilian: 2 c3.} 7. Bb5 {[%emt 0:00:27]} Rc8 {[%emt 0:00:05] Black is weak on the dark squares} 8. O-O {[%emt 0:00:19]} Nh6 {[%emt 0:00:18]} 9. Nbd2 {[%emt 0:00:12]} Qb6 {[%emt 0:00:04] [#]} 10. Ba4 $146 {[%emt 0:00:16]} ({Predecessor:} 10. Bxc6+ Qxc6 11. b3 Qc2 12. Qxc2 Rxc2 13. Ba3 Nf5 14. h3 Bxf3 15. Nxf3 e6 16. Rac1 Rxc1 17. Rxc1 {½-½ Mokshanov,A (2415)-Zakhartsov,V (2472) Moscow op-F 14th 2018 (8)}) 10... Bg7 {[%emt 0:00:10]} 11. h3 {[%emt 0:00:14]} Bxf3 {[%emt 0:00:02]} 12. Nxf3 {[%emt 0:00:01]} O-O {[%emt 0:00:01]} 13. Re1 {[%emt 0:00:09]} Nf5 {[%emt 0:00:17][%cal Rf5d4]} 14. Bxc6 $1 {[%emt 0:00:42]} Qxc6 {[%emt 0:00:09]} 15. Re2 {[%emt 0:00:11]} (15. g4 $16 Nh6 16. Qb3) 15... f6 {[%emt 0:00:20]} 16. Bf4 {[%emt 0:00:20]} g5 {[%emt 0:00:54]} 17. Bd2 {[%emt 0:00:23]} h5 {[%emt 0:00:11]} 18. exf6 {[%emt 0:02:04]} ({Better is} 18. Rc1 $14 Qd7 19. Rxc8 Rxc8 20. Re1) 18... exf6 $11 {[%emt 0:00:06] The position is equal.} 19. Bb4 {[%emt 0:00:02] [#] Strongly threatening Qd3.} Rfe8 {[%emt 0:00:29]} 20. Rxe8+ {[%emt 0:00:03]} Qxe8 {[%emt 0:00:21] Weighted Error Value: White=0.15 (very precise) /Black=0.12 (very precise)} 1/2-1/2

[Event "CCT Airthings Masters Play-In 2023"]
[Site "Online"]
[Date "2023.02.03"]
[Round "3"]
[White "Murzin, Volodar"]
[Black "TigrVShlyape"]
[Result "1/2-1/2"]
[ECO "B13"]
[WhiteElo "2547"]
[BlackElo "2596"]
[Annotator "TA"]
[PlyCount "68"]
[EventDate "2023.02.03"]
[EventType "swiss"]
[EventCountry "NET"]
[SourceTitle "playchess.com"]
[Source "ChessBase"]
[SourceQuality "1"]
[TimeControl "600+2"]

{[%evp 23,68,38,56,55,56,67,63,33,31,22,17,9,23,5,8,5,5,5,5,5,6,10,22,-8,-3,-2,0,-13,-1,-49,-40,-56,-31,-46,-36,-69,0,0,0,0,15,16,16,7,18,0,23]} 1. e4 {[%emt 0:00:27]} c6 {[%emt 0:00:19]} 2. d4 {[%emt 0:01:07]} d5 {[%emt 0:00:04]} 3. exd5 {[%emt 0:00:00]} cxd5 {[%emt 0:00:02]} 4. Bd3 {[%emt 0:00:01]} Nc6 {[%emt 0:00:08]} 5. c3 {[%emt 0:00:01]} Nf6 {[%emt 0:00:02]} 6. Bf4 {[%emt 0:00:02]} Bg4 {[%emt 0:00:04]} 7. Qb3 {[%emt 0:00:01]} Qc8 {[%emt 0:00:04]} 8. Nd2 {[%emt 0:00:02]} e6 {[%emt 0:00:02]} 9. Ngf3 {[%emt 0:00:01]} Be7 {[%emt 0:00:04]} 10. O-O {[%emt 0:00:01]} O-O {[%emt 0:00:07]} 11. Qc2 {[%emt 0:00:21]} Bh5 {[%emt 0:00:07]} 12. Ne5 {[%emt 0:00:02]} Bg6 {[%emt 0:00:04]} 13. Nxg6 {[%emt 0:00:01] B13: Caro-Kann: Exchange Variation and Panov-Botvinnik Attack.} hxg6 {[%emt 0:00:01]} 14. Nf3 {[%emt 0:00:01]} Nh5 {[%emt 0:00:29]} 15. Bg3 {[%emt 0:00:18] White is slightly better.} a6 {[%emt 0:00:34]} 16. a4 {[%emt 0:00:04]} Nxg3 {[%emt 0:00:17] [#]} 17. hxg3 $146 {[%emt 0:00:03]} ({Predecessor:} 17. fxg3 Rb8 18. Qe2 Qd7 19. b4 Rbc8 20. b5 Na5 21. Ne5 Qd6 22. Nxg6 fxg6 23. Bxg6 {1-0 Carlile,O-Curtin,E IRL-ch Cork 1977 (9)}) 17... Qc7 {[%emt 0:00:03]} 18. Qe2 {[%emt 0:00:07]} Bf6 {[%emt 0:00:41]} 19. g4 {[%emt 0:00:32]} g5 {[%emt 0:00:07]} 20. g3 {[%emt 0:00:35]} g6 {[%emt 0:00:14]} 21. Kg2 {[%emt 0:00:03]} Kg7 {[%emt 0:00:01]} 22. Qe3 {[%emt 0:00:18]} e5 {[%emt 0:00:08]} 23. Nxg5 {[%emt 0:02:25]} (23. dxe5 {simplifies} Nxe5 24. Nxe5 Qxe5 25. Qxe5 Bxe5 26. Rfd1) 23... exd4 {[%emt 0:00:24]} 24. cxd4 {[%emt 0:00:03]} Rfe8 {[%emt 0:00:23]} 25. Qd2 {[%emt 0:00:17]} Nxd4 {[%emt 0:00:12] [#] Hoping for ...Nb3.} 26. Ra3 {[%emt 0:01:19] Prevents Nb3} (26. Rh1 $11 Rh8 27. Rae1 (27. Rac1 Qe5 $17)) 26... Qd7 {[%emt 0:01:42]} 27. Rh1 {[%emt 0:01:01]} Rh8 {[%emt 0:00:08] Against Rh7+} 28. Rxh8 {[%emt 0:00:08]} ({Don't go for} 28. Qf4 $2 Rxh1 29. Kxh1 Re8 $17) 28... Rxh8 {[%emt 0:00:03]} 29. Qf4 {[%emt 0:00:04]} Ne6 {[%emt 0:00:51]} ({Better is} 29... Re8 $15 30. Nf3 Nxf3 31. Qxf3 Bxb2) 30. Nxe6+ $11 {[%emt 0:00:05] The position is equal.} Qxe6 {[%emt 0:00:01]} ({Don't do} 30... fxe6 31. g5 Bxb2 32. Rb3 $16) 31. Ra1 {[%emt 0:00:16]} Qe5 {[%emt 0:00:50]} 32. Qxe5 {[%emt 0:00:08]} Bxe5 {[%emt 0:00:02]} 33. Rb1 {[%emt 0:00:04]} g5 {[%emt 0:00:13]} 34. Bf5 {[%emt 0:00:11]} (34. Re1 $5 {[%cal Re1e5]} Kf6 35. f4 $11) 34... Re8 {[%emt 0:00:38] Weighted Error Value: White=0.10 (very precise) /Black=0.11 (very precise)} 1/2-1/2

[Event "CCT Airthings Masters Play-In 2023"]
[Site "Online"]
[Date "2023.02.03"]
[Round "3"]
[White "Arseniy_Nesterov"]
[Black "aquarium76"]
[Result "0-1"]
[ECO "E73"]
[WhiteElo "2545"]
[BlackElo "2302"]
[Annotator "NA"]
[PlyCount "98"]
[EventDate "2023.02.03"]
[EventType "swiss"]
[EventCountry "NET"]
[SourceTitle "playchess.com"]
[Source "ChessBase"]
[SourceQuality "1"]
[TimeControl "600+2"]

1. d4 {[%emt 0:00:03]} Nf6 {[%emt 0:00:05]} 2. c4 {[%emt 0:00:01]} g6 {[%emt 0:00:06]} 3. Nc3 {[%emt 0:00:01]} Bg7 {[%emt 0:00:01]} 4. e4 {[%emt 0:00:01]} d6 {[%emt 0:00:00]} 5. Be2 {[%emt 0:00:01]} O-O {[%emt 0:00:02]} 6. Be3 {[%emt 0:00:01]} Nc6 {[%emt 0:00:02]} 7. Nf3 {[%emt 0:00:10]} Ng4 {[%emt 0:00:06]} 8. Bg5 {[%emt 0:00:09]} h6 {[%emt 0:00:01]} 9. Bh4 {[%emt 0:00:02]} g5 {[%emt 0:00:03]} 10. Bg3 {[%emt 0:00:01]} e5 {[%emt 0:00:01]} 11. d5 {[%emt 0:00:05]} Nd4 {[%emt 0:00:19]} 12. Nxd4 {[%emt 0:00:34]} exd4 {[%emt 0:00:01]} 13. Nb5 {[%emt 0:00:01]} Nf6 {[%emt 0:00:04]} 14. f3 {[%emt 0:00:59]} Nh5 {[%emt 0:01:03]} 15. Bf2 {[%emt 0:00:04]} Nf4 {[%emt 0:03:14]} 16. O-O {[%emt 0:00:24]} c5 {[%emt 0:00:06]} 17. dxc6 {[%emt 0:00:05]} bxc6 {[%emt 0:00:01]} 18. Nxd4 {[%emt 0:00:02]} c5 {[%emt 0:00:01]} 19. Nb5 {[%emt 0:00:10]} Bxb2 {[%emt 0:00:04]} 20. Rb1 {[%emt 0:00:03]} Be5 {[%emt 0:00:02]} 21. Rb3 {[%emt 0:01:52]} Qd7 {[%emt 0:00:59]} 22. Bg3 {[%emt 0:01:00]} Rb8 {[%emt 0:00:20]} 23. Bxf4 {[%emt 0:00:45]} gxf4 {[%emt 0:00:03]} 24. Rd3 {[%emt 0:00:05]} Rb6 {[%emt 0:00:37]} 25. Qd2 {[%emt 0:00:20]} Qe7 {[%emt 0:00:28]} 26. Rd1 {[%emt 0:00:21]} Rd8 {[%emt 0:00:03]} 27. Rd5 {[%emt 0:00:39]} Rd7 {[%emt 0:01:29]} 28. Qa5 {[%emt 0:00:56]} Ra6 {[%emt 0:00:16]} 29. Qd2 {[%emt 0:00:03]} Qf6 {[%emt 0:00:18]} 30. Bf1 {[%emt 0:00:56]} Rc6 {[%emt 0:00:15]} 31. Rd3 {[%emt 0:00:16]} Rb6 {[%emt 0:00:18]} 32. Qa5 {[%emt 0:00:23]} Ra6 {[%emt 0:00:02]} 33. Qd2 {[%emt 0:00:02]} Bb7 {[%emt 0:00:06]} 34. Rb3 {[%emt 0:00:10]} Bc6 {[%emt 0:00:09]} 35. Kh1 {[%emt 0:00:05]} Kh7 {[%emt 0:00:04]} 36. Nc3 {[%emt 0:00:05]} Rb6 {[%emt 0:00:03]} 37. Nd5 {[%emt 0:00:02]} Bxd5 {[%emt 0:00:03]} 38. exd5 {[%emt 0:00:01]} Rdb7 {[%emt 0:00:06]} 39. Bd3+ {[%emt 0:00:02]} Kg7 {[%emt 0:00:02]} 40. Rdb1 {[%emt 0:00:01]} Bd4 {[%emt 0:00:03]} 41. Bc2 {[%emt 0:00:02]} Rxb3 {[%emt 0:00:05]} 42. axb3 {[%emt 0:00:03]} Re7 {[%emt 0:00:02]} 43. Qd3 {[%emt 0:00:09]} Re3 {[%emt 0:00:03]} 44. Qh7+ {[%emt 0:00:05]} Kf8 {[%emt 0:00:01]} 45. h3 {[%emt 0:00:03]} Qh4 {[%emt 0:00:03]} 46. Rf1 {[%emt 0:00:05]} Re1 {[%emt 0:00:04]} 47. Bd3 {[%emt 0:00:04]} Rxf1+ {[%emt 0:00:01]} 48. Bxf1 {[%emt 0:00:00]} Qf2 {[%emt 0:00:01]} 49. Qxh6+ {[%emt 0:00:01]} Ke8 {[%emt 0:00:01]} 0-1